bitfinex-derivatives/quotes_ETHF0:USTF0_20250427
["timestamp","ask_amount","ask_price","bid_price","bid_amount"]
[1745713506705,1.6579,1839.8,1839.5,1.08687]
[1745713506904,1.6579,1839.8,1839.6,1.7274]
[1745713507309,1.08659,1840.1,1839.7,5.958]
[1745713507507,4.8363,1840.2,1839.8,1.7283]
[1745713507508,1.5825,1840.0,1839.8,1.7283]
[1745713507806,2.66914,1840.0,1839.8,1.7283]
[1745713508406,1.5825,1840.0,1839.7,5.958]
[1745713508607,1.08671,1839.9,1839.8,0.66275787]
[1745713509413,4.7903,1840.0,1839.7,5.958]
[1745713509414,1.08672,1839.8,1839.7,5.958]
[1745713509603,2.66922,1839.8,1839.7,5.958]
[1745713510105,2.66922,1839.8,1839.4,3.2078]
[1745713510106,9.7903,1839.8,1839.4,3.2078]
[1745713510311,1.0869,1839.5,1839.4,3.2078]
[1745713510605,1.08689,1839.6,1839.4,3.2078]
[1745713510803,2.66924,1839.8,1839.4,3.2078]
[1745713511005,2.66924,1839.8,1839.6,1.08682]
[1745713511203,1.08671,1839.9,1839.7,2.77778]
[1745713511912,1.08671,1839.9,1839.8,0.66382366]
[1745713514913,1.08671,1839.9,1839.3,5.958]
[1745713514914,1.08696,1839.4,1839.3,5.958]
[1745713515110,1.08695,1839.5,1839.3,5.958]
[1745713515313,1.08695,1839.5,1839.4,1.5997]
[1745713516508,1.6543,1839.6,1839.5,1.0869]
[1745713516708,1.08677,1839.8,1839.4,4.8075]
[1745713516908,4.8917,1839.9,1839.5,1.08688]
[1745713517108,1.08684,1839.7,1839.6,1.6129]
[1745713518515,1.0869,1839.5,1839.4,10.25272]
[1745713518708,1.0869,1839.5,1839.4,5.958]
[1745713519611,1.08688,1839.6,1839.4,10.25276]
[1745713519814,1.08688,1839.6,1839.5,1.7045]
[1745713521213,1.0869,1839.5,1839.4,5.958]
[1745713521411,1.0869,1839.5,1839.4,7.6625]
[1745713521607,4.8917,1839.7,1839.4,7.6625]
[1745713521818,1.0869,1839.5,1839.4,7.6625]
[1745713523016,2.7177,1839.2,1838.8,5.958]
[1745713523213,1.08725,1838.9,1838.8,5.958]
[1745713523420,4.29505,1838.9,1838.8,5.958]
[1745713523913,5.93305,1838.9,1838.8,5.958]
[1745713524108,1.08755,1838.4,1838.3,12.97887245]
[1745713525205,4.29535,1838.4,1838.3,5.958]
[1745713525410,1.08767,1838.2,1838.1,3.2078]
[1745713525616,1.08767,1838.2,1837.9,5.958]
[1745713525617,1.08779,1838.0,1837.9,5.958]
[1745713527422,2.69629,1838.0,1837.9,5.958]
[1745713529618,2.69629,1838.0,1837.6,5.0105]
[1745713529619,1.08796,1837.7,1837.6,5.958]
[1745713530014,1.0882,1837.3,1837.2,4.9499]
[1745713530216,1.0882,1837.3,1837.2,1.7421]
[1745713530808,1.08826,1837.2,1837.1,4.504]
[1745713531117,1.08832,1837.1,1837.0,10.8575]
[1745713531319,1.08832,1837.1,1837.0,9.1658]
[1745713531518,1.08832,1837.1,1837.0,5.958]
[1745713531920,2.85502,1837.1,1837.0,5.958]
[1745713532920,1.08856,1836.7,1836.6,17.0529]
[1745713533123,1.7667,1837.1,1836.6,14.75941]
[1745713533124,1.08853,1836.8,1836.6,14.75941]
[1745713533321,1.0884,1837.0,1836.8,1.08845]
[1745713533619,2.85506,1837.1,1836.8,4.29625]
[1745713533822,1.08838,1837.0,1836.9,1.6904]
[1745713534311,1.0885,1836.8,1836.7,1.6904]
[1745713534925,1.08856,1836.7,1836.6,13.6708]
[1745713535112,1.08856,1836.7,1836.6,9.1658]
[1745713535315,1.08856,1836.7,1836.6,5.958]
[1745713536115,2.77636,1836.7,1836.6,5.958]
[1745713537010,1.6878,1836.7,1836.6,7.04662]
[1745713537211,3.2078,1836.8,1836.6,7.04662]
[1745713537414,5.9841,1836.8,1836.7,1.7509]
[1745713537827,4.8956,1836.8,1836.7,1.7509]
[1745713538120,5.9841,1836.8,1836.7,1.7509]
[1745713538321,4.8956,1836.8,1836.6,7.04658]
[1745713538523,4.8956,1836.8,1836.6,8.80478]
[1745713538711,4.8956,1836.8,1836.7,1.7582]
[1745713538916,5.9841,1836.8,1836.7,1.7582]
[1745713539217,3.2078,1837.1,1836.7,12.7162]
[1745713539425,5.95894,1837.1,1836.8,2.80677]
[1745713539619,2.75114,1837.1,1836.9,3.2078]
[1745713540026,1.6628,1837.1,1836.9,3.2078]
[1745713540227,1.6628,1837.1,1836.9,4.29622]
[1745713540520,1.6628,1837.1,1837.0,1.08838]
[1745713540924,4.507,1837.5,1837.3,1.08817]
[1745713541124,1.08811,1837.5,1837.3,3.2078]
[1745713541420,1.6024,1837.4,1837.3,3.2078]
[1745713541726,1.6024,1837.4,1837.3,4.296]
[1745713542026,1.08801,1837.7,1837.4,1.08809]
[1745713542327,1.08803,1837.6,1837.4,2.69289]
[1745713542525,1.6024,1837.5,1837.4,2.69289]
[1745713542725,5.59594,1837.8,1837.6,1.08801]
[1745713542929,1.6024,1837.7,1837.6,1.08801]
[1745713543125,4.508,1838.1,1837.7,1.08796]
[1745713543322,1.6024,1837.9,1837.7,4.29576]
[1745713544126,1.6024,1837.9,1837.7,3.2078]
[1745713544324,1.6024,1837.9,1837.5,3.2078]
[1745713544519,1.6024,1837.9,1837.5,4.29586]
[1745713544724,1.08793,1837.8,1837.5,4.29586]
[1745713544926,1.6778,1837.7,1837.6,1.08802]
[1745713545422,7.7158,1838.2,1837.6,1.7493]
[1745713545629,1.08787,1837.9,1837.7,3.2078]
[1745713545929,1.6778,1837.8,1837.7,4.29576]
[1745713546226,1.6778,1837.8,1837.7,6.04506]
[1745713547229,2.7657,1837.8,1837.7,3.2078]
[1745713548224,7.7657,1837.8,1837.7,3.2078]
[1745713548531,12.2727,1837.8,1837.7,3.2078]
[1745713548916,1.08802,1837.6,1837.5,3.2078]
[1745713549121,1.08817,1837.4,1837.2,5.958]
[1745713549517,1.614,1837.3,1837.2,7.04626]
[1745713550225,1.614,1837.3,1837.2,8.67866]
[1745713552622,1.614,1837.3,1837.2,7.5904]
[1745713552930,1.08814,1837.4,1837.2,8.67866]
[1745713553529,1.08814,1837.4,1837.2,7.04626]
[1745713553730,1.08370632,1837.3,1837.2,5.958]
[1745713553923,4.508,1837.3,1837.0,3.2078]
[1745713554234,11.4378,1837.3,1836.8,3.2078]
[1745713554427,1.08835,1837.1,1836.9,1.08842]
[1745713555028,1.0883,1837.2,1837.0,1.08838]
[1745713555333,1.08832,1837.1,1837.0,1.08838]
[1745713555524,7.7158,1837.3,1837.1,1.08832]
[1745713555724,7.7158,1837.3,1837.2,1.08826]
[1745713555925,4.29592,1837.5,1837.1,3.2078]
[1745713556125,3.2078,1837.5,1837.4,1.08814]
[1745713556328,2.72916,1837.6,1837.4,1.08812]
[1745713556928,1.6411,1837.6,1837.5,1.08808]
[1745713557137,4.508,1838.0,1837.2,1.6476]
[1745713557329,1.08791,1837.8,1837.6,1.08797]
[1745713557531,1.08791,1837.8,1837.3,4.47961]
[1745713557532,1.08801,1837.7,1837.5,1.08803]
[1745713557835,1.6411,1837.6,1837.5,1.08803]
[1745713558135,1.6411,1837.8,1837.7,1.08793]
[1745713559132,1.6411,1837.8,1837.6,1.6476]
[1745713559329,2.72903,1837.8,1837.4,3.2078]
[1745713559524,1.6411,1837.8,1837.3,1.7591]
[1745713559729,1.6411,1837.8,1837.3,3.38]
[1745713559935,1.6411,1837.8,1837.5,1.08804]
[1745713560135,1.08805,1837.6,1837.4,1.0881]
[1745713560335,1.6475,1837.5,1837.4,1.0881]
[1745713560535,1.6475,1837.5,1837.3,4.46816]
[1745713560735,1.6475,1837.5,1837.3,1.08816]
[1745713560938,2.73561,1837.5,1837.3,1.08816]
[1745713561136,1.08816,1837.4,1837.2,7.04621]
[1745713561336,1.6475,1837.3,1837.2,7.04621]
[1745713561537,4.353,1837.6,1837.5,1.08808]
[1745713562131,4.353,1837.6,1837.3,1.6209]
[1745713562132,1.6475,1837.7,1837.4,1.08812]
[1745713562331,2.73551,1837.7,1837.3,1.6209]
[1745713562532,1.6475,1837.7,1837.4,1.08809]
[1745713562733,1.6475,1837.7,1837.5,1.08803]
[1745713563040,1.6475,1837.7,1837.6,1.08802]
[1745713563236,2.73546,1837.7,1837.5,2.72785]
[1745713563437,2.7355,1837.7,1837.5,1.08807]
[1745713563635,1.08807,1837.6,1837.4,1.08812]
[1745713563840,1.0882,1837.3,1837.2,3.2078]
[1745713564034,1.08828,1837.2,1837.0,1.08836]
[1745713564232,2.69268,1837.2,1837.0,1.08836]
[1745713564645,2.69268,1837.2,1837.0,4.29616]
[1745713564841,2.69271,1837.2,1837.0,4.29618]
[1745713565040,1.6044,1837.2,1837.1,1.08832]
[1745713565234,2.69266,1837.2,1837.0,4.29614]
[1745713565633,1.08832,1837.1,1837.0,3.2078]
[1745713565838,2.81052,1837.1,1837.0,3.2078]
[1745713566036,1.7222,1837.1,1837.0,3.2078]
[1745713566236,1.7222,1837.1,1837.0,4.29618]
[1745713566641,2.81052,1837.1,1837.0,3.2078]
[1745713566839,1.7222,1837.1,1837.0,4.29618]
[1745713567136,2.81052,1837.1,1837.0,3.2078]
[1745713567940,7.16452,1837.1,1837.0,3.2078]
[1745713568242,6.0762,1837.1,1837.0,4.29618]
[1745713569835,6.0762,1837.1,1837.0,3.2078]
[1745713570443,7.5618,1837.4,1837.0,3.2078]
[1745713570737,10.32684,1837.4,1837.2,1.08821]
[1745713571936,1.08823,1837.3,1837.1,2.85039]
[1745713572135,1.6392,1837.2,1837.1,2.85039]
[1745713572338,1.08832,1837.1,1837.0,3.2078]
[1745713572533,2.7275,1837.2,1837.0,4.29618]
[1745713572748,1.6392,1837.2,1837.1,1.08832]
[1745713573147,1.7555,1837.9,1837.1,10.958]
[1745713573341,2.71935,1838.1,1837.1,5.958]
[1745713573342,1.6392,1837.7,1837.1,5.958]
[1745713573537,1.6392,1837.7,1837.2,3.2078]
[1745713573738,1.6392,1837.7,1837.6,4.29582]
[1745713574144,1.6392,1837.7,1837.6,1.08802]
[1745713574549,4.354,1838.0,1837.6,3.2078]
[1745713574749,6.0002,1838.0,1837.9,1.08785]
[1745713575048,7.08799,1838.0,1837.8,4.29566]
[1745713575242,1.08785,1837.9,1837.8,3.2078]
[1745713575443,2.73405,1837.9,1837.8,3.2078]
[1745713575646,2.73405,1837.9,1837.5,5.958]
[1745713575647,1.08793,1837.8,1837.6,1.08802]
[1745713575849,4.354,1838.0,1837.7,3.2078]
[1745713576044,6.0002,1838.0,1837.7,3.2078]
[1745713576243,4.354,1838.0,1837.9,4.29565]
[1745713576443,1.6462,1838.2,1837.9,3.2078]
[1745713576650,1.6462,1838.2,1838.0,1.6622]
[1745713576651,2.73392,1838.2,1838.0,1.6622]
[1745713577650,1.08773,1838.1,1838.0,1.6622]
[1745713577850,2.82033,1838.1,1837.9,3.2078]
[1745713578645,2.82033,1838.1,1837.9,4.8852]
[1745713578949,2.82033,1838.1,1837.9,5.97301]
[1745713580255,1.08779,1838.0,1837.9,3.2078]
[1745713580448,1.6563,1838.0,1837.9,3.2078]
[1745713580948,5.44165,1838.3,1838.0,1.08776]
[1745713581150,1.6563,1838.2,1838.1,1.08773]
[1745713581346,1.6563,1838.2,1838.1,4.29553]
[1745713581942,2.74397,1838.2,1838.0,2.81475]
[1745713582151,1.08773,1838.1,1838.0,1.727]
[1745713582343,2.74403,1838.1,1838.0,1.727]
[1745713582546,1.6563,1838.1,1838.0,2.81479]
[1745713583247,4.354,1838.3,1838.0,1.727]
[1745713583447,4.354,1838.3,1838.2,1.08767]
[1745713583849,1.6484,1838.5,1838.4,1.08755]
[1745713584362,4.353,1838.6,1838.5,1.08749]
[1745713584660,1.6484,1838.8,1838.7,1.08737]
[1745713585551,1.6484,1838.8,1838.7,4.29517]
[1745713586161,2.71743,1839.4,1838.7,4.29517]
[1745713586162,3.722,1839.7,1838.7,19.60257]
[1745713586355,22.88342005,1840.3,1838.7,19.60257]
[1745713586356,19.67562005,1840.3,1839.6,4.29464]
[1745713586555,17.43229639,1840.3,1840.2,4.29429]
[1745713586754,3.2729,1840.7,1840.2,3.2078]
[1745713586963,1.08604,1841.0,1840.5,3.2078]
[1745713587166,9.16004,1841.0,1840.6,1.0862]
[1745713587356,3.722,1841.0,1840.5,3.2078]
[1745713587655,3.722,1841.0,1840.3,4.352]
[1745713587656,3.722,1841.0,1840.8,3.2078]
[1745713587861,3.722,1841.0,1840.9,1.08607]
[1745713588059,3.722,1841.0,1840.9,2.69597]
[1745713588265,4.352,1841.2,1841.0,1.086]
[1745713588467,4.352,1841.2,1841.0,2.6959]
[1745713588766,4.352,1841.2,1841.0,1.6099]
[1745713589058,3.2078,1841.3,1841.0,1.6099]
[1745713589254,1.0858,1841.4,1841.1,3.2078]
[1745713589455,4.35,1841.8,1841.1,4.29372]
[1745713589759,1.08573,1841.5,1841.3,3.2078]
[1745713589953,4.41506,1841.7,1841.1,3.2078]
[1745713590254,1.08604,1841.0,1840.8,4.9117]
[1745713590458,1.08606,1841.0,1840.8,4.9117]
[1745713590658,2.78707,1840.9,1840.8,3.2078]
[1745713591060,6.50907,1840.9,1840.8,3.2078]
[1745713591263,10.423,1840.9,1840.5,3.2078]
[1745713591458,1.08625,1840.6,1840.5,3.2078]
[1745713592460,1.08636,1840.5,1840.3,1.7039]
[1745713592662,2.70576,1840.5,1840.3,1.7039]
[1745713592862,1.6194,1840.5,1840.3,1.7039]
[1745713593066,1.08617,1840.8,1840.3,1.7039]
[1745713593368,5.9133,1840.9,1840.4,3.2078]
[1745713593566,1.08604,1841.0,1840.6,3.2078]
[1745713593761,1.08604,1841.0,1840.7,1.6874]
[1745713594164,2.70544,1841.0,1840.7,1.6874]
[1745713594866,2.70544,1841.0,1840.7,2.77357]
[1745713595056,4.349,1841.3,1840.9,3.2078]
[1745713595265,7.05428,1841.3,1841.0,1.6874]
[1745713595765,7.05428,1841.3,1841.0,2.77341]
[1745713595955,1.0859,1841.2,1841.0,1.6874]
[1745713596158,7.05427,1841.3,1841.0,2.7734]
[1745713596368,1.0859,1841.2,1841.0,1.6874]
[1745713596567,1.08595,1841.1,1841.0,1.6874]
[1745713596864,1.08592,1841.2,1841.0,1.6874]
[1745713597468,7.05427,1841.3,1841.0,2.77339]
[1745713598167,1.08577,1841.5,1841.2,1.0859]
[1745713598367,2.84027,1841.5,1841.3,1.6005]
[1745713598862,1.0854,1842.1,1841.4,7.06145]
[1745713599067,4.347,1842.7,1841.4,7.06145]
[1745713599068,1.6091,1842.2,1842.0,1.0854]
[1745713599369,1.08528,1842.3,1842.1,1.6891]
[1745713599564,2.69425,1842.5,1842.2,1.08527]
[1745713599766,1.08519,1842.4,1842.3,1.6891]
[1745713599972,7.5548,1842.7,1842.3,1.6891]
[1745713600267,1.08509,1842.6,1842.3,2.77433]
[1745713600470,2.69419,1842.6,1842.4,1.6891]
[1745713601171,2.69422,1842.6,1842.4,1.6891]
[1745713601671,1.6091,1842.6,1842.4,2.77426]
[1745713601871,4.29284,1842.7,1842.4,2.77426]
[1745713602065,1.08513,1842.5,1842.4,1.6891]
[1745713603369,1.6429,1842.6,1842.2,5.958]
[1745713603572,3.2078,1842.7,1842.2,5.958]
[1745713603573,2.72812,1842.4,1842.2,1.6186]
[1745713604568,2.72812,1842.4,1841.7,5.958]
[1745713604569,1.08538,1842.1,1841.8,3.2078]
[1745713604772,3.2078,1842.3,1841.8,4.8937]
[1745713604973,1.08548,1841.9,1841.8,3.2078]
[1745713605178,1.7057,1842.0,1841.8,3.2078]
[1745713605474,1.08539,1842.1,1841.8,5.97922]
[1745713605677,1.08539,1842.1,1841.9,1.6859]
[1745713605974,1.08542,1842.0,1841.9,1.6859]
[1745713606174,2.79112,1842.0,1841.9,1.6859]
[1745713606672,2.79112,1842.0,1841.5,5.958]
[1745713606673,6.7057,1842.0,1841.5,5.958]
[1745713606877,1.08566,1841.6,1841.5,5.958]
[1745713607175,3.722,1841.9,1841.5,1.08568]
[1745713607382,1.08556,1841.8,1841.6,1.6859]
[1745713607569,1.0856,1841.7,1841.6,4.8937]
[1745713608281,1.0856,1841.7,1841.6,1.6859]
[1745713608973,1.7057,1841.9,1841.4,3.2078]
[1745713609174,1.08571,1841.6,1841.4,4.9566]
[1745713609472,1.08572,1841.5,1841.4,4.9566]
[1745713609686,1.08584,1841.3,1841.2,3.2078]
[1745713610291,1.7161,1841.8,1841.2,3.2078]
[1745713610484,1.6438,1842.1,1841.6,3.2078]
[1745713610686,3.2078,1842.2,1841.7,1.623]
[1745713610887,1.08537,1842.1,1841.8,1.08552]
[1745713611084,1.08542,1842.0,1841.9,1.623]
[1745713611284,1.0855,1841.9,1841.6,4.9503]
[1745713611479,1.0855,1841.9,1841.7,2.70858]
[1745713611688,1.6353,1842.0,1841.9,1.08548]
[1745713612091,1.6353,1842.0,1841.8,1.08552]
[1745713612279,1.6353,1842.0,1841.9,1.623]
[1745713612684,2.72072,1842.0,1841.9,1.623]
[1745713612887,1.08553,1841.9,1841.6,4.9503]
[1745713613086,3.722,1842.0,1841.7,1.623]
[1745713613285,3.722,1842.0,1841.9,1.08543]
[1745713613789,3.722,1842.0,1841.8,1.08551]
[1745713613987,3.722,1842.0,1841.7,1.623]
[1745713614191,3.2078,1842.2,1841.7,1.623]
[1745713614392,3.2078,1842.2,1841.8,0.656821]
[1745713614592,4.344,1842.3,1842.0,1.0854]
[1745713614789,4.344,1842.3,1842.1,2.79436]
[1745713614992,2.72066,1842.5,1842.2,6.00208]
[1745713615291,1.6355,1842.5,1842.3,1.08523]
[1745713615493,1.6355,1842.5,1842.4,4.9168]
[1745713615893,2.72063,1842.5,1842.4,4.9168]
[1745713616390,2.72063,1842.5,1842.4,5.57696794]
[1745713617091,1.6355,1842.5,1842.4,6.66215794]
[1745713618188,4.277,1843.0,1842.4,5.57696794]
[1745713618396,1.08501,1842.7,1842.6,3.2078]
[1745713618785,1.08499,1842.8,1842.6,4.95303794]
[1745713618991,1.7184,1842.9,1842.7,1.627]
[1745713619292,2.80331,1842.9,1842.7,2.28716794]
[1745713619483,1.7184,1842.9,1842.7,3.37217794]
[1745713619683,1.7184,1842.9,1842.7,2.28716794]
[1745713619684,2.80332,1842.9,1842.7,2.28716794]
[1745713619893,2.80332,1842.9,1842.7,2.71201]
[1745713620495,2.80332,1842.9,1842.7,1.627]
[1745713620697,1.7184,1842.9,1842.8,0.65985233]
[1745713620897,2.80329,1842.9,1842.8,0.65985233]
[1745713621402,1.08495,1842.8,1842.6,4.29285]
[1745713621594,1.6485,1842.7,1842.6,4.29285]
[1745713621795,1.6485,1842.7,1842.6,4.95293698]
[1745713622196,5.36186,1843.0,1842.8,1.08491]
[1745713622398,5.9255,1843.0,1842.9,1.08489]
[1745713622699,7.01038,1843.0,1842.8,4.29273]
[1745713623199,3.722,1843.5,1843.4,1.08456]
[1745713623393,3.722,1843.5,1843.4,4.29236]
[1745713623792,3.722,1843.5,1843.4,4.95216357]
[1745713623994,5.4015,1843.5,1843.4,4.95216357]
[1745713624796,5.4015,1843.5,1843.4,3.86760357]
[1745713625296,11.48604,1843.5,1843.4,0.65980357]
[1745713626196,6.48604,1843.5,1843.4,3.2078]
[1745713626593,5.4015,1843.5,1843.4,3.2078]
[1745713626799,5.4015,1843.5,1843.4,4.2924]
[1745713627200,1.6795,1843.5,1843.4,3.86786557]
[1745713627402,1.6795,1843.5,1843.4,4.95246557]
[1745713628095,2.76404,1843.5,1843.4,3.86786557]
[1745713628699,1.08447,1843.7,1843.5,1.08453]
[1745713628898,2.11409,1844.0,1843.9,1.08431]
[1745713629096,1.6076,1845.4,1844.4,3.2078]
[1745713629298,1.6076,1845.4,1845.2,3.2078]
[1745713629896,7.794,1845.9,1845.2,3.2078]
[1745713629897,4.53,1846.8,1845.3,5.19006557]
[1745713630096,1.6076,1846.5,1846.4,3.2078]
[1745713630304,1.08284,1846.4,1846.1,3.2078]
[1745713630602,1.6076,1846.3,1846.0,2.70435]
[1745713630901,4.53,1847.1,1846.2,3.2078]
[1745713631103,1.08259,1846.9,1846.8,3.2078]
[1745713631405,1.08254,1846.9,1846.8,3.19587845]
[1745713631601,1.08261,1846.8,1846.6,3.2078]
[1745713631899,1.6076,1846.9,1846.6,3.2078]
[1745713632204,4.528,1847.0,1846.8,3.2078]
[1745713632498,2.66147,1847.1,1846.8,3.2078]
[1745713632805,1.579,1847.1,1846.8,3.2078]
[1745713633099,10.301,1847.1,1846.6,3.2078]
[1745713633403,1.03378762,1846.7,1846.6,3.2078]
[1745713634099,1.03378762,1846.7,1846.6,3.22409083]
[1745713634398,4.75578762,1846.7,1846.6,3.22409083]
[1745713634698,9.75578762,1846.7,1846.6,0.01629083]
[1745713635003,1.0829,1846.3,1846.2,3.2078]
[1745713635199,4.8049,1846.3,1846.2,3.2078]
[1745713635402,8.722,1846.3,1846.0,3.2078]
[1745713635595,4.812,1846.2,1845.7,3.2078]
[1745713635790,7.23354,1846.1,1845.5,3.2078]
[1745713635993,1.6042,1846.0,1845.3,3.2078]
[1745713636298,1.08331,1845.6,1845.5,3.2078]
[1745713636901,7.70828,1845.6,1845.3,3.2078]
[1745713637103,1.08354,1845.2,1845.1,3.2078]
[1745713637305,3.722,1845.6,1845.1,3.2078]
[1745713637506,3.722,1845.6,1845.5,3.2078]
[1745713637802,4.80531,1845.6,1845.5,3.2078]
[1745713638402,1.08348,1845.3,1845.2,1.5745]
[1745713638602,1.08348,1845.4,1845.2,3.2078]
[1745713639000,1.6532,1845.5,1845.2,3.2078]
[1745713639206,1.6532,1845.5,1844.3,3.2594]
[1745713639207,1.08366,1845.0,1844.9,3.2078]
[1745713639505,1.08383,1844.8,1844.6,1.6024]
[1745713639697,1.08383,1844.8,1844.7,3.2078]
[1745713640101,1.08408,1844.3,1843.9,1.08431]
[1745713640303,1.08405,1844.4,1844.2,3.2078]
[1745713640506,1.08407,1844.3,1844.2,3.2078]
[1745713640700,1.08419,1844.1,1844.0,3.2078]
[1745713640896,3.2078,1844.5,1843.9,4.8102]
[1745713641098,4.525,1844.8,1844.4,3.2078]
[1745713641308,1.0841,1844.3,1844.2,3.2078]
[1745713641604,1.08407,1844.3,1844.2,3.2078]
[1745713642104,3.2078,1844.6,1844.0,3.2078]
[1745713642305,1.08419,1844.1,1844.0,3.2078]
[1745713642512,1.08431,1843.9,1843.8,3.2078]
[1745713642900,1.6637,1844.1,1843.8,3.2078]
[1745713643100,1.6637,1844.1,1843.9,1.5985]
[1745713643305,3.722,1844.1,1843.9,1.5985]
[1745713643508,3.722,1844.1,1844.0,3.2078]
[1745713643709,4.80619,1844.1,1844.0,3.2078]
[1745713644112,3.2078,1845.3,1844.0,8.2078]
[1745713644413,1.6581,1845.2,1844.6,3.2078]
[1745713644616,1.08368,1845.0,1844.7,1.747]
[1745713644914,1.6581,1845.2,1844.8,3.2078]
[1745713645102,1.6581,1845.2,1845.0,1.08364]
[1745713645411,7.7338,1845.4,1844.9,1.747]
[1745713645707,1.08382,1844.8,1844.6,3.2078]
[1745713645913,1.08384,1844.7,1844.6,4.9548]
[1745713646215,1.08384,1844.7,1844.6,1.747]
[1745713646717,4.526,1844.9,1844.6,1.747]
[1745713646909,4.526,1844.9,1844.8,3.2078]
[1745713647214,1.08372,1844.9,1844.8,3.2078]
[1745713647711,1.6581,1845.0,1844.8,3.2078]
[1745713647712,1.08368,1845.0,1844.8,3.2078]
[1745713647913,3.722,1845.1,1844.9,1.6583]
[1745713648112,4.80564,1845.1,1844.9,1.6583]
[1745713648312,1.08364,1845.1,1844.9,1.6583]
[1745713648513,1.6158,1845.3,1844.9,1.6583]
[1745713648704,2.6993,1845.3,1845.0,1.08362]
[1745713648908,1.08372,1844.9,1844.8,3.2078]
[1745713649108,4.526,1845.2,1844.8,3.2078]
[1745713649307,1.08372,1844.9,1844.8,3.2078]
[1745713649609,2.69942,1845.1,1844.8,3.2078]
[1745713649811,1.6158,1845.1,1844.8,3.2078]
[1745713650114,5.3378,1845.1,1844.8,4.29156]
[1745713650315,5.3378,1845.1,1844.8,3.2078]
[1745713650517,3.722,1845.1,1845.0,4.29146]
[1745713651110,1.08352,1845.3,1845.0,4.29146]
[1745713651317,1.5967,1845.4,1845.0,3.2078]
[1745713651723,1.08353,1845.3,1845.0,4.29144]
[1745713651914,1.5967,1845.4,1845.2,1.08349]
[1745713652115,1.5967,1845.4,1845.2,3.2078]
[1745713652415,5.60939,1845.5,1845.3,1.6045]
[1745713652614,5.60939,1845.5,1844.4,5.958]
[1745713652615,3.2078,1845.4,1844.9,3.2078]
[1745713652815,1.08363,1845.1,1844.9,3.2078]
[1745713653216,1.08366,1845.0,1844.9,3.2078]
[1745713653416,2.68246,1845.0,1844.9,3.2078]
[1745713653820,1.08362,1845.1,1844.9,3.2078]
[1745713654216,3.722,1845.0,1844.9,3.2078]
[1745713654417,4.80566,1845.0,1844.9,3.2078]
[1745713655212,1.08378,1844.8,1844.7,4.8123]
[1745713655618,1.08378,1844.8,1844.7,3.2078]
[1745713655922,1.08407,1844.3,1844.2,3.2078]
[1745713656119,1.08407,1844.3,1843.7,7.6737]
[1745713656120,9.64,1844.3,1843.8,3.2078]
[1745713656317,1.08433,1843.9,1843.8,3.2078]
[1745713656620,1.08436,1843.8,1843.7,1.661]
[1745713656919,1.08442,1843.7,1843.6,3.2078]
[1745713657819,1.08466,1843.3,1843.2,3.2078]
[1745713658021,6.1942,1843.7,1843.2,5.87689]
[1745713658220,1.0845,1843.6,1843.5,3.2078]
[1745713658617,1.0846,1843.4,1843.3,3.2078]
[1745713658824,4.38056,1843.5,1842.9,3.2078]
[1745713659025,7.7328,1843.7,1842.2,73.80687245]
[1745713659026,1.08495,1842.8,1842.7,3.2078]
[1745713659221,1.0849,1842.9,1842.6,3.2078]
[1745713659426,1.0849,1842.9,1842.8,3.2078]
[1745713659725,1.08495,1842.8,1842.7,1.6517]
[1745713659916,1.08507,1842.6,1842.5,3.2078]
[1745713660425,1.08516,1842.5,1842.3,4.8595]
[1745713660625,1.08516,1842.5,1842.4,1.6517]
[1745713661123,1.6589,1842.8,1842.4,1.6517]
[1745713661322,1.08513,1842.5,1842.4,1.6517]
[1745713663225,3.722,1842.6,1842.1,3.2078]
[1745713663425,1.08535,1842.2,1842.1,3.2078]
[1745713663823,1.08542,1842.0,1841.9,4.8779]
[1745713664026,1.7245,1842.4,1841.9,4.8779]
[1745713664226,1.08531,1842.2,1842.1,3.2078]
[1745713664429,1.08542,1842.0,1841.9,4.8779]
[1745713666128,1.7245,1842.2,1841.9,4.8779]
[1745713666323,1.08542,1842.0,1841.9,4.8779]
[1745713666925,1.0854,1842.1,1841.9,4.8779]
[1745713667329,1.08542,1842.0,1841.9,4.8779]
[1745713668130,1.0854,1842.1,1841.9,4.8779]
[1745713668322,1.08542,1842.0,1841.9,4.8779]
[1745713669628,1.08539,1842.1,1841.9,4.8779]
[1745713669931,1.08535,1842.2,1841.9,5.96337]
[1745713670132,3.2078,1842.6,1841.9,9.8779]
[1745713670326,1.08515,1842.5,1842.3,1.08523]
[1745713670527,1.08515,1842.5,1842.4,1.7475]
[1745713671024,1.08511,1842.6,1842.4,4.9553]
[1745713671229,1.08511,1842.6,1842.4,6.04047]
[1745713671430,1.08513,1842.5,1842.4,4.9553]
[1745713671630,1.08513,1842.5,1842.4,1.7475]
[1745713671830,1.08525,1842.3,1842.2,3.2078]
[1745713672033,1.08525,1842.3,1842.2,4.9414]
[1745713673830,2.71319,1842.3,1842.0,3.2078]
[1745713674029,1.08541,1842.1,1842.0,3.2078]
[1745713674734,1.08534,1842.2,1842.0,4.29322]
[1745713674926,1.08527,1842.3,1842.1,1.08536]
[1745713675125,1.08525,1842.3,1842.2,3.2078]